fUST/lending_fUST_20250616
["ID","MTS","AMOUNT","RATE_DAILY","PERIOD"]
[366142025,1750085438975,-500.0,0.0001965,2]
[366142026,1750085438984,-556.32249542,0.00019686,2]
[366142027,1750085438993,-500.0,0.00019725,4]
[366142028,1750085439003,-926.77,0.00019725,4]
[366142029,1750085439013,-460.0,0.00019725,4]
[366142030,1750085439023,-151.73,0.00019726,2]
[366142031,1750085439032,-460.0,0.00019726,4]
[366142032,1750085439042,-460.0,0.00019726,4]
[366142033,1750085439052,-460.0,0.00019726,4]
[366142034,1750085439063,-680.49,0.00019726,4]
[366142035,1750085439073,-460.0,0.00019726,4]
[366142036,1750085439083,-460.0,0.00019726,4]
[366142037,1750085439094,-717.26,0.00019726,4]
[366142038,1750085439104,-729.14,0.00019726,4]
[366142039,1750085439114,-575.0934504,0.00019726,4]
[366142040,1750085439124,-460.0,0.00019726,4]
[366142041,1750085439134,-460.0,0.00019726,4]
[366142042,1750085439144,-460.0,0.00019726,4]
[366142043,1750085439154,-460.0,0.00019726,4]
[366142044,1750085439164,-460.0,0.00019726,4]
[366142045,1750085439175,-460.0,0.00019726,4]
[366142046,1750085439185,-460.0,0.00019726,4]
[366142047,1750085439194,-460.0,0.00019726,4]
[366142048,1750085439205,-460.0,0.00019726,4]
[366142049,1750085439216,-460.0,0.00019726,4]
[366142050,1750085439226,-460.0,0.00019726,4]
[366142051,1750085439237,-460.0,0.00019726,4]
[366142053,1750085439247,-1180.72,0.00019726,4]
[366142054,1750085439258,-460.0,0.00019726,4]
[366142055,1750085439268,-604.16,0.00019726,4]
[366142056,1750085439279,-783.98,0.00019726,4]
[366142057,1750085439290,-460.0,0.00019726,2]
[366142058,1750085439300,-460.0,0.00019726,4]
[366142059,1750085439310,-460.0,0.00019726,4]
[366142060,1750085439320,-500.0,0.00019807,2]
[366142061,1750085439330,-500.0,0.00019807,2]
[366142062,1750085439340,-420.0,0.00019827,2]
[366142063,1750085439351,-420.0,0.00019827,2]
[366142064,1750085439361,-180.0,0.00019827,2]
[366142065,1750085439371,-926.77,0.00019999,4]
[366142066,1750085439381,-460.0,0.00019999,4]
[366142067,1750085439392,-460.0,0.0002,4]
[366142068,1750085439402,-460.0,0.0002,4]
[366142069,1750085439412,-460.0,0.0002,4]
[366142070,1750085439422,-680.49,0.0002,4]
[366142071,1750085439432,-382.89,0.0002,4]
[366142072,1750085439442,-717.26,0.0002,4]
[366142073,1750085439452,-729.14,0.0002,4]
[366142074,1750085439462,-460.0,0.0002,4]
[366142075,1750085439472,-460.0,0.0002,4]
[366142076,1750085439482,-460.0,0.0002,4]
[366142077,1750085439492,-460.0,0.0002,4]
[366142078,1750085439501,-460.0,0.0002,4]
[366142079,1750085439511,-460.0,0.0002,4]
[366142080,1750085439520,-460.0,0.0002,4]
[366142081,1750085439530,-460.0,0.0002,4]
[366142082,1750085439541,-460.0,0.0002,4]
[366142083,1750085439550,-460.0,0.0002,4]
[366142084,1750085439561,-460.0,0.0002,4]
[366142085,1750085439572,-460.0,0.0002,4]
[366142087,1750085439583,-1180.72,0.0002,4]
[366142088,1750085439593,-460.0,0.0002,4]
[366142089,1750085439604,-604.16,0.0002,4]
[366142090,1750085439614,-783.98,0.0002,4]
[366142091,1750085439623,-460.0,0.0002,2]
[366142092,1750085439632,-460.0,0.0002,4]
[366142093,1750085439642,-460.0,0.0002,4]
[366142094,1750085439652,-1557.32,0.00020044,2]
[366142095,1750085439662,-2051.48613709,0.00020071,2]
[366142096,1750085439672,-37336.5553394,0.00020099,2]
[366142097,1750085439686,-53870.0,0.00020099,2]
[366142098,1750085439698,-340869.5294706,0.00020099,2]
[366142099,1750085439708,-1102.44444118,0.000201,2]
[366142100,1750085439717,-1102.444441,0.00020107,2]
[366142101,1750085439727,-340.0,0.00020273,4]
[366142102,1750085439737,-506.24,0.00020273,4]
[366142103,1750085439746,-926.77,0.00020273,4]
[366142104,1750085439756,-460.0,0.00020273,4]
[366142105,1750085439766,-680.49,0.00020273,4]
[366142106,1750085439775,-717.26,0.00020273,4]
[366142107,1750085439786,-729.14,0.00020273,4]
[366142108,1750085439796,-460.0,0.00020273,4]
[366142109,1750085439806,-460.0,0.00020273,4]
[366142110,1750085439816,-460.0,0.00020273,4]
[366142111,1750085439826,-460.0,0.00020273,4]
[366142112,1750085439836,-460.0,0.00020273,4]
[366142113,1750085439846,-281.29276321,0.00020273,4]
[366142114,1750085439856,-460.0,0.00020273,4]
[366142115,1750085439866,-460.0,0.00020273,4]
[366142116,1750085439876,-460.0,0.00020273,4]
[366142117,1750085439886,-460.0,0.00020273,4]
[366142118,1750085439896,-460.0,0.00020273,4]
[366142119,1750085439906,-460.0,0.00020273,4]
[366142120,1750085439916,-460.0,0.00020273,4]
[366142121,1750085439926,-1180.72,0.00020273,4]
[366142122,1750085439936,-460.0,0.00020273,4]
[366142123,1750085439945,-604.16,0.00020273,4]
[366142124,1750085439955,-783.98,0.00020273,4]
[366142125,1750085439965,-460.0,0.00020273,2]
[366142126,1750085439976,-460.0,0.00020273,4]
[366142127,1750085439985,-460.0,0.00020273,4]
[366142128,1750085439995,-1102.444441,0.00020314,3]
[366142129,1750085440005,-471.11250847,0.00020355,2]
[366142130,1750085440015,-232.85,0.00020492,3]
[366142131,1750085440025,-698.57,0.00020492,3]
[366142133,1750085440036,-168.972,0.00020504,2]
[366142134,1750085440046,-465.69,0.00020511,3]
[366142136,1750085440056,-1102.444441,0.00020521,3]
[366142137,1750085440066,-500.0,0.00020547,2]
[366142139,1750085440076,-926.77,0.00020547,4]
[366142141,1750085440086,-460.0,0.00020547,4]
[366142143,1750085440096,-680.49,0.00020547,4]
[366142145,1750085440106,-717.26,0.00020547,4]
[366142147,1750085440116,-729.14,0.00020547,4]
[366142148,1750085440126,-460.0,0.00020547,4]
[366142150,1750085440136,-460.0,0.00020547,4]
[366142152,1750085440147,-460.0,0.00020547,4]
[366142154,1750085440158,-460.0,0.00020547,4]
[366142156,1750085440169,-460.0,0.00020547,4]
[366142158,1750085440179,-460.0,0.00020547,4]
[366142160,1750085440193,-460.0,0.00020547,4]
[366142162,1750085440203,-460.0,0.00020547,4]
[366142163,1750085440213,-460.0,0.00020547,4]
[366142165,1750085440222,-460.0,0.00020547,4]
[366142167,1750085440231,-235.29805264,0.00020547,4]
[366142169,1750085440241,-460.0,0.00020547,4]
[366142171,1750085440250,-1180.72,0.00020547,4]
[366142173,1750085440260,-493.83,0.00020547,4]
[366142175,1750085440269,-604.16,0.00020547,4]
[366142187,1750085440279,-783.98,0.00020547,4]
[366142190,1750085440406,-460.0,0.00020547,2]
[366142192,1750085440416,-460.0,0.00020547,4]
[366142194,1750085440425,-340.0,0.00020547,4]
[366142196,1750085440435,-160.0,0.00020623,2]
[366142198,1750085440445,-229.90125484,0.00020623,2]
[366142200,1750085440454,-213.36025772,0.00020623,2]
[366142202,1750085440463,-835.67987521,0.00020623,2]
[366142203,1750085440473,-160.0,0.00020623,2]
[366142205,1750085440483,-424.54874296,0.00020623,2]
[366142207,1750085440492,-160.0,0.00020623,2]
[366142209,1750085440503,-1102.444441,0.00020728,3]
[366142211,1750085440512,-160.0,0.00020821,2]
[366142212,1750085440522,-926.77,0.00020821,4]
[366142214,1750085440532,-460.0,0.00020821,4]
[366142216,1750085440542,-680.49,0.00020821,4]
[366142218,1750085440552,-717.26,0.00020821,4]
[366142220,1750085440564,-729.14,0.00020821,4]
[366142222,1750085440574,-190.7,0.00020821,4]
[366142224,1750085440583,-460.0,0.00020821,4]
[366142225,1750085440595,-460.0,0.00020821,4]
[366142227,1750085440604,-460.0,0.00020821,4]
[366142229,1750085440616,-460.0,0.00020821,4]
[366142231,1750085440627,-460.0,0.00020821,4]
[366142233,1750085440638,-460.0,0.00020821,4]
[366142235,1750085440651,-460.0,0.00020821,4]
[366142237,1750085440661,-460.0,0.00020821,4]
[366142238,1750085440671,-460.0,0.00020821,4]
[366142240,1750085440681,-460.0,0.00020821,4]
[366142242,1750085440690,-1180.72,0.00020821,4]
[366142244,1750085440701,-604.16,0.00020821,4]
[366142246,1750085440711,-783.98,0.00020821,4]
[366142248,1750085440721,-460.0,0.00020821,2]
[366142250,1750085440730,-460.0,0.00020821,4]
[366142252,1750085440740,-1102.444441,0.00020934,4]
[366142254,1750085440750,-500.0,0.00020964,2]
[366142256,1750085440760,-3114.64,0.00020998,2]
[366142258,1750085440770,-500.0,0.00021095,3]
[366142259,1750085440780,-926.77,0.00021095,4]
[366142261,1750085440790,-460.0,0.00021095,4]
[366142263,1750085440800,-680.49,0.00021095,4]
[366142265,1750085440810,-717.26,0.00021095,4]
[366142267,1750085440819,-729.14,0.00021095,4]
[366142269,1750085440829,-282.38120988,0.00021095,4]
[366142271,1750085440839,-460.0,0.00021095,4]
[366142273,1750085440848,-460.0,0.00021095,4]
[366142275,1750085440858,-460.0,0.00021095,4]
[366142277,1750085440867,-460.0,0.00021095,4]
[366142278,1750085440877,-232.54,0.00021095,4]
[366142280,1750085440887,-460.0,0.00021095,4]
[366142282,1750085440896,-460.0,0.00021095,4]
[366142284,1750085440906,-460.0,0.00021095,4]
[366142286,1750085440916,-1180.72,0.00021095,4]
[366142288,1750085440926,-604.16,0.00021095,4]
[366142290,1750085440936,-783.98,0.00021095,4]
[366142291,1750085440945,-460.0,0.00021095,2]
[366142293,1750085440955,-460.0,0.00021095,4]
[366142295,1750085440965,-1102.444441,0.00021141,4]
[366142297,1750085440976,-1102.444441,0.00021348,5]
[366142299,1750085440986,-926.77,0.00021369,4]
[366142301,1750085440995,-460.0,0.00021369,4]
[366142303,1750085441004,-680.49,0.00021369,4]
[366142305,1750085441014,-717.26,0.00021369,4]
[366142307,1750085441024,-729.14,0.00021369,4]
[366142308,1750085441034,-460.0,0.00021369,4]
[366142310,1750085441044,-460.0,0.00021369,4]
[366142312,1750085441054,-460.0,0.00021369,4]
[366142314,1750085441064,-460.0,0.00021369,4]
[366142316,1750085441075,-460.0,0.00021369,4]
[366142318,1750085441084,-460.0,0.00021369,4]
[366142320,1750085441093,-1180.72,0.00021369,4]
[366142322,1750085441103,-604.16,0.00021369,4]
[366142324,1750085441113,-783.98,0.00021369,4]
[366142326,1750085441123,-460.0,0.00021369,2]
[366142328,1750085441133,-460.0,0.00021369,4]
[366142329,1750085441142,-152.91354487,0.00021375,2]
[366142331,1750085441152,-243.40682598,0.00021375,2]
[366142333,1750085441162,-500.0,0.00021375,2]
[366142335,1750085441171,-600.0,0.00021375,2]
[366142337,1750085441181,-500.0,0.00021375,2]
[366142339,1750085441191,-500.0,0.00021375,2]
[366142341,1750085441200,-192.15274499,0.00021407,2]
[366142343,1750085441210,-1102.444441,0.00021555,5]
[366142345,1750085441219,-437.0,0.00021629,2]
[366142347,1750085441230,-531.0,0.00021629,2]
[366142348,1750085441239,-926.77,0.00021643,4]
[366142350,1750085441249,-460.0,0.00021643,4]
[366142352,1750085441259,-680.49,0.00021643,4]
[366142354,1750085441269,-717.26,0.00021643,4]
[366142356,1750085441278,-729.14,0.00021643,4]
[366142358,1750085441289,-460.0,0.00021643,4]
[366142360,1750085441299,-460.0,0.00021643,4]
[366142362,1750085441310,-460.0,0.00021643,4]
[366142364,1750085441320,-460.0,0.00021643,4]
[366142366,1750085441329,-460.0,0.00021643,4]
[366142368,1750085441339,-460.0,0.00021643,4]
[366142370,1750085441349,-1180.72,0.00021643,4]
[366142372,1750085441360,-604.16,0.00021643,4]
[366142374,1750085441370,-783.98,0.00021643,4]
[366142376,1750085441380,-460.0,0.00021643,2]
[366142377,1750085441389,-460.0,0.00021643,4]
[366142379,1750085441399,-1102.444441,0.00021762,5]
[366142381,1750085441409,-500.0,0.0002185,2]
[366142383,1750085441419,-465.7,0.00021862,3]
[366142385,1750085441429,-931.38,0.00021881,3]
[366142387,1750085441439,-500.0,0.0002189,2]
[366142389,1750085441449,-509.52386993,0.0002189,2]
[366142391,1750085441458,-500.72314247,0.0002189,2]
[366142393,1750085441468,-500.0,0.0002189,2]
[366142395,1750085441478,-500.91501384,0.0002189,2]
[366142397,1750085441487,-3252.0,0.00021916,2]
[366142398,1750085441497,-926.77,0.00021917,4]
[366142400,1750085441509,-460.0,0.00021917,4]
[366142402,1750085441518,-680.49,0.00021917,4]
[366142404,1750085441528,-717.26,0.00021917,4]
[366142406,1750085441538,-729.14,0.00021917,4]
[366142408,1750085441547,-460.0,0.00021917,4]
[366142410,1750085441556,-460.0,0.00021917,4]
[366142412,1750085441570,-460.0,0.00021917,4]
[366142414,1750085441580,-460.0,0.00021917,4]
[366142416,1750085441590,-460.0,0.00021917,4]
[366142418,1750085441600,-505.0716492,0.00021917,2]
[366142420,1750085441611,-460.0,0.00021917,4]
[366142422,1750085441621,-1180.72,0.00021917,4]
[366142424,1750085441630,-604.16,0.00021917,4]
[366142426,1750085441641,-783.98,0.00021917,4]
[366142428,1750085441651,-460.0,0.00021917,2]
[366142430,1750085441661,-460.0,0.00021917,4]
[366142432,1750085441671,-400.0,0.00021918,2]
[366142434,1750085441680,-1102.444441,0.00021969,6]
[366142436,1750085441690,-1442.77809707,0.00021995,2]
[366142438,1750085441699,-4671.96,0.00022054,2]
[366142439,1750085441708,-175.0,0.00022056,2]
[366142441,1750085441718,-175.0,0.00022108,2]
[366142443,1750085441728,-3252.0,0.00022142,2]
[366142445,1750085441737,-1102.444441,0.00022176,6]
[366142446,1750085441748,-926.77,0.00022191,4]
[366142447,1750085441757,-460.0,0.00022191,4]
[366142448,1750085441767,-680.49,0.00022191,4]
[366142449,1750085441776,-717.26,0.00022191,4]
[366142450,1750085441785,-729.14,0.00022191,4]
[366142451,1750085441796,-460.0,0.00022191,4]
[366142452,1750085441805,-460.0,0.00022191,4]
[366142453,1750085441815,-460.0,0.00022191,4]
[366142454,1750085441824,-460.0,0.00022191,4]
[366142455,1750085441833,-460.0,0.00022191,4]
[366142456,1750085441844,-460.0,0.00022191,4]
[366142457,1750085441853,-1180.72,0.00022191,4]
[366142458,1750085441862,-604.16,0.00022191,4]
[366142459,1750085441871,-783.98,0.00022191,4]
[366142460,1750085441881,-460.0,0.00022191,2]
[366142461,1750085441890,-460.0,0.00022191,4]
[366142462,1750085441899,-175.0,0.00022194,2]
[366142463,1750085441908,-29626.84444165,0.00022283,2]
[366142464,1750085441918,-2940.39709766,0.00022307,2]
[366142465,1750085441927,-207.4,0.00022307,2]
[366142466,1750085441936,-5000.0,0.00022307,2]
[366142468,1750085441946,-500.0,0.00022307,2]
[366142469,1750085441955,-500.0,0.00022307,2]
[366142471,1750085441965,-500.0,0.00022307,2]
[366142473,1750085441974,-500.0,0.00022307,2]
[366142475,1750085441984,-500.0,0.00022307,2]
[366142477,1750085441993,-500.0,0.00022307,2]
[366142479,1750085442002,-500.0,0.00022307,2]
[366142481,1750085442012,-500.0,0.00022307,2]
[366142483,1750085442021,-500.0,0.00022307,2]
[366142485,1750085442030,-500.0,0.00022307,2]
[366142487,1750085442041,-500.0,0.00022307,2]
[366142489,1750085442051,-500.0,0.00022307,2]
[366142491,1750085442062,-500.0,0.00022307,2]
[366142493,1750085442072,-500.0,0.00022307,2]
[366142495,1750085442082,-500.0,0.00022307,2]
[366142497,1750085442091,-1102.444441,0.00022383,7]
[366142499,1750085442102,-968.0,0.0002243,4]
[366142501,1750085442111,-1160.0,0.0002243,4]
[366142503,1750085442121,-1001.74147025,0.00022438,2]
[366142505,1750085442130,-926.77,0.00022465,4]
[366142507,1750085442140,-460.0,0.00022465,4]
[366142509,1750085442149,-680.49,0.00022465,4]
[366142511,1750085442158,-717.26,0.00022465,4]
[366142513,1750085442168,-729.14,0.00022465,4]
[366142514,1750085442178,-460.0,0.00022465,4]
[366142516,1750085442187,-303.97,0.00022465,4]
[366142519,1750085442197,-460.0,0.00022465,4]
[366142520,1750085442206,-460.0,0.00022465,4]
[366142521,1750085442216,-460.0,0.00022465,4]
[366142523,1750085442225,-460.0,0.00022465,4]
[366142525,1750085442234,-1180.72,0.00022465,4]
[366142528,1750085442244,-604.16,0.00022465,4]
[366142530,1750085442253,-783.98,0.00022465,4]
[366142532,1750085442263,-477.6,0.00022465,2]
[366142534,1750085442273,-460.0,0.00022465,4]
[366142535,1750085442282,-175.0,0.00022496,2]
[366142538,1750085442292,-964.0,0.00022583,2]
[366142540,1750085442302,-2160.0,0.00022583,2]
[366142541,1750085442313,-653.0,0.00022583,2]
[366142543,1750085442322,-406.0,0.00022583,2]
[366142546,1750085442332,-1102.444441,0.0002259,7]
[366142550,1750085442342,-926.77,0.00022739,4]
[366142553,1750085442351,-460.0,0.00022739,4]
[366142557,1750085442360,-680.49,0.00022739,4]
[366142558,1750085442370,-717.26,0.00022739,4]
[366142561,1750085442379,-729.14,0.00022739,4]
[366142564,1750085442389,-460.0,0.00022739,4]
[366142566,1750085442398,-460.0,0.00022739,4]
[366142568,1750085442408,-460.0,0.00022739,4]
[366142570,1750085442418,-460.0,0.00022739,4]
[366142572,1750085442427,-460.0,0.00022739,4]
[366142574,1750085442436,-1180.72,0.00022739,4]
[366142576,1750085442446,-604.16,0.00022739,4]
[366142579,1750085442455,-783.98,0.00022739,4]
[366142581,1750085442464,-460.0,0.00022739,4]
[366142583,1750085442474,-1102.444441,0.00022797,7]
[366142585,1750085442483,-5000.0,0.00022855,2]
[366142587,1750085442494,-151.0,0.00022912,7]
[366142590,1750085442503,-882.99,0.00023,2]
[366142593,1750085442512,-1102.444441,0.00023003,8]
[366142595,1750085442522,-926.77,0.00023013,4]
[366142597,1750085442531,-460.0,0.00023013,4]
[366142599,1750085442542,-680.49,0.00023013,4]
[366142601,1750085442551,-717.26,0.00023013,4]
[366142603,1750085442562,-729.14,0.00023013,4]
[366142605,1750085442572,-460.0,0.00023013,4]
[366142606,1750085442582,-460.0,0.00023013,4]
[366142608,1750085442591,-460.0,0.00023013,4]
[366142610,1750085442601,-460.0,0.00023013,4]
[366142613,1750085442611,-460.0,0.00023013,4]
[366142614,1750085442620,-1180.72,0.00023013,4]
[366142617,1750085442630,-604.16,0.00023013,4]
[366142619,1750085442641,-783.98,0.00023013,4]
[366142621,1750085442651,-460.0,0.00023013,4]
[366142622,1750085442662,-6229.28,0.00023013,2]
[366142624,1750085442671,-175.0,0.00023046,2]
[366142626,1750085442681,-175.0,0.00023074,2]
[366142628,1750085442691,-175.0,0.00023136,2]
[366142630,1750085442701,-175.0,0.00023141,2]
[366142632,1750085442710,-175.0,0.00023189,2]
[366142634,1750085442719,-1102.444441,0.0002321,8]
[366142636,1750085442729,-926.77,0.00023287,4]
[366142638,1750085442738,-460.0,0.00023287,4]
[366142640,1750085442748,-680.49,0.00023287,4]
[366142642,1750085442758,-717.26,0.00023287,4]
[366142644,1750085442767,-729.14,0.00023287,4]
[366142645,1750085442777,-460.0,0.00023287,4]
[366142648,1750085442787,-231.25,0.00023287,4]
[366142649,1750085442797,-401.38,0.00023287,4]
[366142651,1750085442807,-460.0,0.00023287,4]
[366142653,1750085442816,-460.0,0.00023287,4]
[366142655,1750085442825,-1180.72,0.00023287,4]
[366142657,1750085442834,-604.16,0.00023287,4]
[366142659,1750085442844,-783.98,0.00023287,4]
[366142661,1750085442854,-460.0,0.00023287,4]
[366142663,1750085442864,-5000.0,0.00023403,2]
[366142665,1750085442874,-175.0,0.00023405,2]
[366142667,1750085442884,-1102.444441,0.00023417,9]
[366142669,1750085442894,-175.0,0.00023429,2]
[366142672,1750085442903,-1201.710785,0.00023492,3]
[366142675,1750085442913,-926.77,0.00023561,4]
[366142678,1750085442924,-460.0,0.00023561,4]
[366142680,1750085442934,-680.49,0.00023561,4]
[366142682,1750085442943,-717.26,0.00023561,4]
[366142684,1750085442953,-729.14,0.00023561,4]
[366142686,1750085442963,-460.0,0.00023561,4]
[366142688,1750085442972,-460.0,0.00023561,4]
[366142690,1750085442982,-460.0,0.00023561,4]
[366142692,1750085442991,-1180.72,0.00023561,4]
[366142694,1750085443001,-604.16,0.00023561,4]
[366142696,1750085443010,-783.98,0.00023561,4]
[366142698,1750085443020,-460.0,0.00023561,4]
[366142700,1750085443029,-175.0,0.00023576,2]
[366142702,1750085443040,-29626.84444165,0.00023592,2]
[366142704,1750085443050,-1102.444441,0.00023624,9]
[366142706,1750085443059,-215.0738,0.00023676,2]
[366142708,1750085443070,-192.15274499,0.00023735,2]
[366142710,1750085443079,-800.0,0.00023759,2]
[366142712,1750085443090,-2820.0903785,0.00023775,3]
[366142714,1750085443099,-151.0,0.000238,7]
[366142716,1750085443109,-160.0,0.000238,3]
[366142718,1750085443118,-845.47092152,0.000238,3]
[366142719,1750085443128,-213.36025772,0.000238,3]
[366142721,1750085443139,-229.90125484,0.000238,3]
[366142724,1750085443149,-160.0,0.000238,3]
[366142725,1750085443159,-1102.444441,0.00023831,10]
[366142727,1750085443169,-5000.0,0.00023835,2]
[366142729,1750085443179,-5000.0,0.00023835,2]
[366142731,1750085443188,-5000.0,0.00023835,2]
[366142733,1750085443198,-5000.0,0.00023835,2]
[366142735,1750085443207,-5000.0,0.00023835,2]
[366142737,1750085443218,-926.77,0.00023835,4]
[366142739,1750085443228,-460.0,0.00023835,4]
[366142742,1750085443239,-680.49,0.00023835,4]
[366142754,1750085443358,-717.26,0.00023835,4]
[366142756,1750085443369,-729.14,0.00023835,4]
[366142758,1750085443379,-387.98,0.00023835,4]
[366142760,1750085443388,-384.36,0.00023835,4]
[366142762,1750085443398,-460.0,0.00023835,4]
[366142764,1750085443407,-1180.72,0.00023835,4]
[366142766,1750085443417,-604.16,0.00023835,4]
[366142768,1750085443427,-783.98,0.00023835,4]
[366142770,1750085443438,-460.0,0.00023835,4]
[366142772,1750085443448,-371.60898775,0.00023869,2]
[366142774,1750085443457,-676.25425517,0.000239,2]
[366142776,1750085443467,-1000.0,0.0002392,5]
[366142778,1750085443476,-1000.0,0.0002394,5]
[366142780,1750085443486,-5000.0,0.00023951,2]
[366142782,1750085443495,-1000.0,0.0002396,5]
[366142784,1750085443505,-269.27879374,0.00023972,2]
[366142786,1750085443517,-2000.0,0.00023972,2]
[366142788,1750085443526,-1061.1395789,0.00023972,2]
[366142790,1750085443536,-7786.6,0.00023972,2]
[366142791,1750085443546,-163.505152,0.00023973,2]
[366142794,1750085443556,-1000.0,0.0002398,5]
[366142796,1750085443571,-460711.81753833,0.00024,7]
[366143014,1750085445785,-53825.67132869,0.00024,7]
[366143028,1750085445916,-11809.8213073,0.00024,7]
[366146125,1750085514678,2954.0,0.0002465,120]
[366146134,1750085850364,163.505152,0.00013699,2]
[366146135,1750085856414,400.0,0.00024657,120]
[366146137,1750085957859,-354107.29927457,0.00024993,60]
[366146139,1750085982444,1512.47898502,0.00024993,60]
[366146140,1750086010343,500.0,0.00023,120]
[366146141,1750086011866,500.0,0.00023,120]
[366146142,1750086012670,500.0,0.00023,120]
[366146143,1750086013734,500.0,0.00023,120]
[366146144,1750086014993,500.0,0.00023,120]
[366146145,1750086015791,500.0,0.00023,120]
[366146146,1750086016709,500.0,0.00023,120]
[366146147,1750086017420,500.0,0.00023,120]
[366146148,1750086018266,500.0,0.00023,120]
[366146149,1750086019117,500.0,0.00023,120]
[366146150,1750086019923,500.0,0.00023,120]
[366146151,1750086020742,500.0,0.00023,120]
[366146152,1750086021527,500.0,0.00023,120]
[366146153,1750086022459,500.0,0.00023,120]
[366146154,1750086023247,500.0,0.00023,120]
[366146155,1750086024203,500.0,0.00023,120]
[366146156,1750086029426,500.0,0.00023,120]
[366146157,1750086030347,500.0,0.00023,120]
[366146158,1750086031136,500.0,0.00023,120]
[366146159,1750086031907,500.0,0.00023,120]
[366146160,1750086032687,500.0,0.00023,120]
[366146161,1750086033453,500.0,0.00023,120]
[366146162,1750086034228,500.0,0.00023,120]
[366146163,1750086035009,500.0,0.00023,120]
[366146164,1750086035793,500.0,0.00023,120]
[366146165,1750086037004,500.0,0.00023,120]
[366146166,1750086037785,500.0,0.00023,120]
[366146167,1750086038841,500.0,0.00023,120]
[366146168,1750086039670,500.0,0.00023,120]
[366146169,1750086040450,500.0,0.00023,120]
[366146170,1750086041267,500.0,0.00023,120]
[366146172,1750086042024,500.0,0.00023,120]
[366146173,1750086042814,500.0,0.00023,120]
[366146174,1750086043600,508.84,0.00023,120]
[366146176,1750086090794,200.0,0.00024461,120]
[366146177,1750086092081,150.5,0.00023278,120]
[366146178,1750086092270,150.5,0.00023278,120]
[366146179,1750086092453,150.5,0.00023268,120]
[366146180,1750086092721,290.16,0.00023268,120]
[366146181,1750086092910,150.5,0.00023258,120]
[366146182,1750086093361,207.95,0.0002399,120]
[366146183,1750086109165,500.0,0.00023,120]
[366146184,1750086109928,500.0,0.00023,120]
[366146185,1750086110712,500.0,0.00023,120]
[366146186,1750086111478,500.0,0.00023,120]
[366146187,1750086112248,500.0,0.00023,120]
[366146188,1750086113033,500.0,0.00023,120]
[366146190,1750086113832,500.0,0.00023,120]
[366146191,1750086114605,500.0,0.00023,120]
[366146192,1750086115372,500.0,0.00023,120]
[366146193,1750086116153,500.0,0.00023,120]